bitfinex/quotes_SOLUSD_20250517
["timestamp","ask_amount","ask_price","bid_price","bid_amount"]
[1747507932017,18.64964886,166.06,165.98,6.02482226]
[1747507932221,1.19931185,166.05,165.98,6.02482226]
[1747507932929,18.64964886,166.04,165.98,6.02482226]
[1747507933137,19.84896071,166.06,165.98,6.02482226]
[1747507934355,18.64964886,166.04,165.98,6.02482226]
[1747507934553,19.84896071,166.04,165.98,6.02482226]
[1747507935547,18.64964886,166.02,165.98,6.02482226]
[1747507936233,6.02272894,166.04,165.98,6.02482226]
[1747507937256,19.84896071,166.06,165.98,6.02482226]
[1747507937257,24.6719313,166.05,165.98,6.02482226]
[1747507937552,1.19931185,166.04,165.98,6.02482226]
[1747507938341,18.64964886,166.02,165.96,6.02554832]
[1747507939035,19.84896071,166.02,165.96,6.02554832]
[1747507940662,25.87255073,166.02,165.95,6.02591141]
[1747507941225,40.93097742,166.02,165.92,14.95446915]
[1747507943336,18.64964886,165.98,165.92,8.92770304]
[1747507943537,19.84896071,165.98,165.92,14.95462826]
[1747507944539,25.87380095,165.98,165.92,14.95462826]
[1747507945464,18.64964886,165.98,165.92,14.95462826]
[1747507945651,18.64964886,166.0,165.92,14.95462826]
[1747507946578,24.67377714,166.0,165.92,30.02213067]
[1747507947139,1.19931185,165.99,165.92,14.95462826]
[1747507948358,26.0,166.01,165.92,14.95462826]
[1747507948665,18.64964886,166.0,165.92,14.95462826]
[1747507949163,18.64964886,166.0,165.92,30.02213067]
[1747507949551,1.19931185,165.99,165.92,14.95462826]
[1747507950362,6.02482226,165.98,165.92,14.95462826]
[1747507953447,18.64964886,165.98,165.92,8.92770304]
[1747507953966,6.02441561,166.0,165.92,14.95460145]
[1747507954270,24.67406447,166.0,165.92,14.95460145]
[1747507958062,19.44,166.02,165.92,56.02210386]
[1747507958257,18.64964886,166.01,165.94,6.3018]
[1747507959678,18.64964886,166.01,165.95,6.02591141]
[1747507961671,32.02271263,166.04,165.95,21.09068995]
[1747507962376,44.90238689,166.05,165.95,22.29547405]
[1747507963066,39.90238689,166.05,165.95,22.29547405]
[1747507963583,18.64964886,166.04,165.95,22.29547405]
[1747507964094,17.64964886,166.04,165.95,22.29547405]
[1747507965178,16.64964886,166.04,165.95,22.29547405]
[1747507966181,15.64964886,166.04,165.95,22.29547405]
[1747507973096,21.67249296,166.04,165.95,22.29547405]
[1747507973398,18.64964886,166.02,165.95,6.02591141]
[1747507973593,18.64964886,166.0,165.95,6.02591141]
[1747507973793,24.67385614,166.0,165.94,6.02627455]
[1747507977010,18.64964886,166.0,165.94,6.02627455]
[1747507978300,24.67378275,166.0,165.94,6.02627455]
[1747507978507,1.19931185,165.99,165.93,7.52943093]
[1747507978804,24.67378275,166.0,165.93,7.52943093]
[1747507981001,18.64964886,166.0,165.93,7.52943093]
[1747507981210,19.84896071,166.02,165.93,7.52943093]
[1747507982413,18.64964886,166.02,165.93,22.59602527]
[1747507982620,18.64964886,166.03,165.94,1.20484522]
[1747507983078,20.46237595,166.05,165.94,1.20484522]
[1747507983285,18.64964886,166.04,165.95,6.2464]
[1747507983815,38.06964886,166.07,165.96,27.20469909]
[1747507984311,44.09121756,166.07,165.97,21.08814845]
[1747507985698,24.67121756,166.07,165.97,21.08814845]
[1747507985895,18.73201049,166.1,166.0,26.0]
[1747507986803,24.75270277,166.1,166.0,26.0]
[1747507988006,24.75270277,166.1,166.01,6.02373351]
[1747507990112,24.75248617,166.1,166.01,21.08306728]
[1747507990308,18.64964886,166.08,166.01,27.43846728]
[1747507991224,18.64964886,166.08,166.01,12.37913351]
[1747507991428,1.19931185,166.09,166.01,12.37913351]
[1747507991429,18.64964886,166.06,166.01,6.02373351]
[1747507991587,18.64964886,166.06,165.99,6.0244593]
[1747507992195,24.67169762,166.06,165.99,6.0244593]
[1747507993410,9.7,166.05,165.99,6.0244593]
[1747507994916,15.72239017,166.05,165.99,6.0244593]
[1747508001400,9.7,166.05,165.99,6.0244593]
[1747508003523,9.7,166.05,165.99,21.08560756]
[1747508003824,19.42,166.08,165.99,21.08560756]
[1747508005525,25.44129201,166.08,165.99,21.08560756]
[1747508007626,19.42,166.08,165.99,21.08560756]
[1747508008329,25.44127767,166.08,165.99,21.08560756]
[1747508008931,6.3,166.07,165.99,21.08560756]
[1747508016711,18.64964886,166.1,166.0,27.20443108]
[1747508017816,24.67011997,166.1,166.01,21.08306728]
[1747508018012,26.0,166.11,166.01,21.08306728]
[1747508018333,18.64964886,166.11,166.02,1.20423866]
[1747508018815,18.64964886,166.11,166.01,21.08306728]
[1747508019216,1.19931185,166.12,166.04,27.6466]
[1747508019412,12.48782204,166.16,166.05,26.0]
[1747508019413,18.64964886,166.14,166.05,26.0]
[1747508019620,6.01865783,166.15,166.05,26.0]
[1747508019919,6.01865783,166.15,166.06,21.07671925]
[1747508020237,18.64964886,166.15,166.06,21.07671925]
[1747508021940,24.6683254,166.15,166.06,21.07671925]
[1747508022940,1.19931185,166.14,166.06,6.02191978]
[1747508024341,7.21859517,166.14,166.06,6.02191978]
[1747508026918,24.66833418,166.15,166.06,6.02191978]
[1747508027841,24.66833418,166.15,166.06,21.07671925]
[1747508033536,18.64964886,166.13,166.06,6.02191978]
[1747508033745,1.19931185,166.12,166.06,6.02191978]
[1747508033927,18.64964886,166.11,166.06,6.02191978]
[1747508034147,18.64964886,166.11,166.05,32.02214565]
[1747508034823,19.84896071,166.14,166.05,32.02214565]
[1747508035427,6.01938241,166.13,166.05,32.02214565]
[1747508035631,18.64964886,166.11,166.05,32.02214565]
[1747508036951,24.66984979,166.11,166.05,32.02214565]
[1747508038022,18.64964886,166.09,166.01,6.02373351]
[1747508039235,6.0211946,166.08,166.01,6.02373351]
[1747508040551,7.2210407,166.07,166.0,6.02405971]
[1747508041124,7.2210407,166.07,165.99,7.6105988]
[1747508046732,7.19452582,166.07,165.99,7.6105988]
[1747508048256,7.19452582,166.07,165.99,53.1105988]
[1747508051736,18.64964886,166.06,165.99,45.5]
[1747508051949,18.64964886,166.04,165.99,45.5]
[1747508052236,18.64964886,166.04,165.98,51.52473911]
[1747508052661,24.67253019,166.04,165.98,51.52473911]
[1747508054250,18.64964886,166.04,165.98,51.52473911]
[1747508054455,18.64964886,166.06,165.98,51.52473911]
[1747508054658,19.84896071,166.06,165.98,51.52473911]
[1747508055356,25.87105208,166.06,165.98,66.58679477]
[1747508057454,25.87105208,166.06,165.98,51.52473911]
[1747508058362,25.87105208,166.06,165.96,71.5]
[1747508058661,25.87105208,166.06,165.97,6.02518527]
[1747508061265,25.87105208,166.06,165.97,21.08814845]
[1747508063257,25.87105208,166.06,165.97,66.58814845]
[1747508063967,19.84896071,166.06,165.97,66.58814845]
[1747508064174,32.0216709,166.07,165.97,66.58814845]
[1747508064175,26.0,166.07,165.98,7.83403264]
[1747508065041,26.0,166.07,165.98,53.33403264]
[1747508066262,26.0,166.07,165.99,22.65890756]
[1747508067488,1.19931185,166.08,165.99,48.65890756]
[1747508067787,18.64964886,166.11,166.0,1.20450203]
[1747508067942,19.84896071,166.11,166.0,1.20450203]
[1747508068340,19.84896071,166.11,166.01,21.08306728]
[1747508072278,19.84896071,166.11,166.01,66.58306728]
[1747508073179,25.86914466,166.11,166.01,66.58306728]
[1747508076788,40.91941255,166.11,166.01,51.52373351]
[1747508086878,24.67048093,166.09,166.01,51.52373351]
[1747508087087,1.19931185,166.08,166.01,51.52373351]
[1747508087294,1.19931185,166.08,165.99,1.5733]
[1747508087295,1.19931185,166.08,166.0,6.02397421]
[1747508087885,18.64964886,166.07,166.0,6.02397421]
[1747508088086,1.19931185,166.06,165.99,53.09775657]
[1747508088677,1.19931185,166.06,165.99,47.0733]
[1747508088876,18.64964886,166.04,165.99,47.0733]
[1747508089182,18.64964886,166.04,165.99,1.5733]
[1747508089709,18.64964886,166.04,165.99,7.59767201]
[1747508092611,24.67232182,166.04,165.99,7.59767201]
[1747508096282,24.67232182,166.04,165.99,1.5733]
[1747508096682,24.67232182,166.04,165.98,6.02470643]
[1747508097602,18.64964886,166.02,165.96,45.5]
[1747508097781,18.64964886,166.0,165.95,1.5558]
[1747508098099,6.0244593,165.99,165.93,6.02663773]
[1747508098491,18.64964886,165.98,165.93,45.5]
[1747508099695,24.67450436,165.98,165.93,51.52652373]
[1747508099897,18.64964886,165.98,165.93,51.52652373]
[1747508100390,24.67378815,166.0,165.93,51.52652373]
[1747508102205,18.64964886,165.98,165.93,51.52652373]
[1747508102510,18.64964886,165.98,165.93,6.02652373]
[1747508102683,18.64964886,165.98,165.92,6.02692903]
[1747508104310,19.34,166.01,165.92,6.02692903]
[1747508104311,18.64964886,166.0,165.92,6.02692903]
[1747508104501,18.64964886,166.03,165.94,26.0]
[1747508104689,18.64964886,166.03,165.95,1.5984]
[1747508105490,18.64964886,166.03,165.96,6.02554832]
[1747508106096,24.67273587,166.03,165.96,6.02554832]
[1747508107817,18.64964886,166.03,165.96,51.52554832]
[1747508107992,19.34,166.04,165.96,72.92871913]
[1747508114531,22.05457132,166.06,165.96,72.92871913]
[1747508114709,20.85525947,166.06,165.99,26.0]
[1747508114908,20.85525947,166.06,165.99,27.20441465]
[1747508115108,20.85525947,166.06,165.99,26.0]
[1747508115816,20.85525947,166.06,166.0,6.02409638]
[1747508116017,20.85525947,166.06,166.0,51.52409638]
[1747508118230,26.8772063,166.06,166.0,51.52409638]
[1747508119611,24.67200875,166.05,166.0,45.5]
[1747508119931,24.67200875,166.05,166.0,45.47348511]
[1747508120317,24.67200875,166.05,165.99,51.49787932]
[1747508124030,24.67200875,166.05,165.99,45.47348511]
[1747508124340,1.19931185,166.04,165.99,45.47348511]
[1747508124530,18.64964886,166.03,165.98,7.62315886]
[1747508124728,18.64964886,166.03,165.9,155.82775281]
[1747508124729,63.98964886,166.03,165.94,6.02627455]
[1747508124934,18.64964886,166.01,165.92,1.5984]
[1747508125133,18.64964886,165.99,165.92,1.5984]
[1747508125428,18.64964886,165.99,165.92,7.62535616]
[1747508125935,5.98044938,165.99,165.92,7.62535616]
[1747508127244,18.64964886,165.99,165.92,7.62535616]
[1747508128147,24.67348222,166.01,165.92,7.62535616]
[1747508128847,24.67348222,166.01,165.92,22.69285857]
[1747508129324,24.67348222,166.01,165.92,68.16634368]
[1747508132960,18.64964886,166.01,165.92,68.16634368]
[1747508133251,15.05675991,166.04,165.96,6.2039]
[1747508133252,6.02272272,166.04,165.96,6.2039]
[1747508133457,6.02272272,166.04,165.97,1.5925]
[1747508134358,6.02272272,166.04,165.98,6.02482226]
[1747508134652,19.84896071,166.03,165.96,45.47348511]
[1747508136757,18.64964886,166.01,165.96,45.47348511]
[1747508137430,19.84896071,166.01,165.96,45.47348511]
[1747508138365,19.84896071,166.01,165.95,6.02582675]
[1747508138541,19.84896071,166.01,165.94,51.49964688]
[1747508138735,18.64964886,165.99,165.93,53.11636803]
[1747508143142,6.02461884,165.99,165.93,53.11636803]
[1747508143938,1.19931185,166.01,165.93,53.11636803]
[1747508144146,19.84896071,166.02,165.93,53.11636803]
[1747508144862,6.02383361,166.01,165.93,53.11636803]
[1747508157370,45.84896071,166.0,165.93,47.08978511]
[1747508158875,6.0244593,165.99,165.93,47.08978511]
[1747508159278,6.0244593,165.99,165.93,1.6163]
[1747508159656,6.0244593,165.99,165.93,7.64286999]
[1747508161677,6.0244593,165.99,165.93,1.6163]
[1747508161863,6.0244593,165.99,165.93,7.6429309]
[1747508168468,6.0244593,165.99,165.93,1.6163]
[1747508169294,6.0244593,165.99,165.93,7.64291798]
[1747508169576,6.0244593,165.99,165.93,1.6163]
[1747508170884,6.0244593,165.99,165.93,7.64286272]
[1747508178588,18.64964886,165.97,165.9,54.40226443]
[1747508178771,18.64964886,165.95,165.9,8.92877932]
[1747508179794,6.02627455,165.94,165.9,8.92877932]
[1747508182493,18.64964886,165.92,165.9,8.92877932]
[1747508182993,7.22608882,165.93,165.85,53.00819784]
[1747508182994,18.64964886,165.9,165.85,53.00819784]
[1747508183695,22.54964886,165.9,165.85,53.00819784]
[1747508186396,22.54964886,165.9,165.85,7.53471273]
[1747508186692,24.67743429,165.9,165.85,1.5054]
[1747508187077,24.67743429,165.9,165.85,7.53487242]
[1747508187295,18.64964886,165.9,165.85,7.53487242]
[1747508188691,2.7,165.89,165.85,7.53487242]
[1747508190299,18.64964886,165.9,165.85,7.53487242]
[1747508194328,2.7,165.89,165.85,7.53487242]
[1747508197603,18.64964886,165.88,165.84,45.47348511]
[1747508200490,2.7,165.89,165.84,51.50326014]
[1747508209299,18.64964886,165.88,165.82,1.5694]
[1747508209501,19.84896071,165.88,165.82,1.5694]
[1747508210118,18.64964886,165.84,165.76,1.5106]
[1747508210323,18.64964886,165.84,165.76,46.98408511]
[1747508210896,18.64964886,165.84,165.77,6.0324546]
[1747508212122,18.64964886,165.87,165.77,22.31973694]
[1747508212822,24.67860333,165.87,165.77,22.31973694]
[1747508213319,24.67860333,165.87,165.77,67.79322205]
[1747508216522,24.67860333,165.87,165.77,51.50593971]
[1747508216523,18.64964886,165.85,165.77,51.50593971]
[1747508217115,25.87791518,165.87,165.77,67.79322316]
[1747508218432,25.87791518,165.87,165.77,66.58707622]
[1747508218433,6.02954476,165.85,165.77,66.58707622]
[1747508219424,7.22885661,165.85,165.77,51.50593971]
[1747508222305,19.84896071,165.87,165.77,51.50593971]
[1747508223028,25.87790237,165.87,165.77,66.58707622]
[1747508225739,25.87790237,165.87,165.73,8.93793815]
[1747508225740,62.71964886,165.83,165.73,8.93793815]
[1747508225921,18.64964886,165.78,165.71,8.59897349]
[1747508226231,19.84896071,165.78,165.71,8.59897349]
[1747508226819,19.84896071,165.78,165.71,14.63351679]
[1747508227215,26.0,165.74,165.71,8.59897349]
[1747508227414,18.64964886,165.73,165.71,8.59897349]
[1747508228116,18.64964886,165.74,165.71,8.59897349]
[1747508228321,44.64964886,165.72,165.71,8.59897349]
[1747508229341,50.68392354,165.72,165.71,8.59897349]
[1747508229536,25.88323539,165.72,165.71,8.59897349]
[1747508230035,51.88323539,165.72,165.71,8.59897349]
[1747508230241,25.88323539,165.72,165.71,8.59897349]
[1747508230832,51.88323539,165.72,165.71,8.59897349]
[1747508231239,50.68392354,165.72,165.71,8.59897349]
[1747508231425,44.64964886,165.72,165.71,8.59897349]
[1747508232220,18.64964886,165.72,165.71,8.59897349]
[1747508232544,20.49931185,165.74,165.71,8.59897349]
[1747508232751,18.64964886,165.73,165.71,14.6335779]
[1747508233246,19.34964886,165.73,165.71,14.6335779]
[1747508233721,19.34964886,165.73,165.71,8.59897349]
[1747508234148,19.34964886,165.73,165.7,6.0349294]
[1747508234448,0.7,165.73,165.7,6.0349294]
[1747508236629,96.67035452,165.77,165.7,6.0349294]
[1747508236825,18.64964886,165.76,165.7,51.5349294]
[1747508239041,19.84896071,165.76,165.7,51.5349294]
[1747508239855,25.88179028,165.76,165.7,51.5349294]
[1747508240539,25.88179028,165.76,165.7,6.0349294]
[1747508243257,1.6,165.75,165.7,6.0349294]
[1747508247858,1.6,165.75,165.7,51.5349294]
[1747508248237,70.67035452,165.77,165.7,66.62243694]
[1747508253050,0.8,165.76,165.7,66.62243694]
[1747508254649,0.8,165.76,165.7,67.82898765]
[1747508256365,18.64964886,165.8,165.7,67.82898765]
[1747508258475,0.8,165.79,165.7,67.82898765]
[1747508259069,0.8,165.79,165.7,98.00400273]
[1747508260270,0.8,165.79,165.73,26.0]
[1747508261375,18.64964886,165.82,165.73,26.0]
[1747508261759,24.68032974,165.82,165.72,21.11996138]
[1747508261962,24.68032974,165.82,165.72,47.11996138]
[1747508262461,24.68032974,165.82,165.73,6.4144]
[1747508263078,24.68032974,165.82,165.74,6.03354651]
[1747508263257,0.8,165.81,165.74,51.53354651]
[1747508267571,18.64964886,165.8,165.74,51.53354651]
[1747508270875,24.68114756,165.8,165.74,51.53354651]
[1747508271179,18.64964886,165.78,165.74,45.5]
[1747508271357,18.64964886,165.78,165.72,51.53412945]
[1747508272479,24.68206819,165.78,165.72,51.53412945]
[1747508275285,18.64964886,165.76,165.71,51.53462054]
[1747508275862,18.64964886,165.76,165.71,45.5]
[1747508276390,18.64964886,165.76,165.7,45.5]
[1747508276566,18.64964886,165.76,165.69,53.07451774]
[1747508277486,18.64964886,165.74,165.69,53.07451774]
[1747508279184,6.03363817,165.74,165.69,53.07451774]
[1747508280373,18.64964886,165.74,165.69,53.07451774]
[1747508280576,27.19931185,165.77,165.69,53.07451774]
[1747508280980,18.64964886,165.76,165.69,53.07451774]
[1747508281996,24.68258015,165.76,165.69,53.07451774]
[1747508286292,18.64964886,165.76,165.69,53.07451774]
[1747508286489,69.96162268,165.79,165.69,53.07451774]
[1747508286792,69.96162268,165.79,165.7,6.5705]
[1747508287376,63.92964886,165.79,165.7,6.5705]
[1747508288280,44.64964886,165.79,165.7,6.5705]
[1747508288483,44.64964886,165.79,165.7,52.0705]
[1747508288792,44.64964886,165.79,165.71,21.12123588]
[1747508288983,18.64964886,165.8,165.71,67.82775231]
[1747508289190,18.64964886,165.8,165.71,87.10775231]
[1747508290190,18.64964886,165.81,165.72,26.0]
[1747508290898,18.64964886,165.81,165.73,6.03391057]
[1747508291083,24.68074353,165.81,165.73,6.03391057]
[1747508292197,1.19931185,165.8,165.72,6.03427468]
[1747508294400,7.23087991,165.8,165.72,6.03427468]
[1747508296003,6.03156806,165.8,165.72,6.03427468]
[1747508300413,6.03156806,165.8,165.72,51.53427468]
[1747508301502,1.19931185,165.81,165.72,51.53427468]
[1747508301716,18.64964886,165.81,165.72,66.61996138]
[1747508302575,24.68069108,165.81,165.72,66.61996138]
[1747508308412,1.19931185,165.8,165.72,51.53427468]
[1747508309642,18.64964886,165.78,165.72,51.53427468]
[1747508310314,18.64964886,165.8,165.72,51.53427468]
[1747508311716,18.64964886,165.8,165.72,66.61996138]
[1747508313626,24.68101624,165.8,165.72,66.61996138]
[1747508316759,18.64964886,165.78,165.72,66.61996138]
[1747508317339,18.64964886,165.78,165.72,51.53427468]
[1747508319629,24.68177928,165.78,165.72,51.53427468]
[1747508320550,18.64964886,165.78,165.72,51.53427468]
[1747508324922,18.64964886,165.8,165.72,51.53427468]
[1747508326146,24.68107691,165.8,165.72,51.53427468]
[1747508326951,18.64964886,165.8,165.72,66.61996138]
[1747508328239,18.64964886,165.79,165.72,66.61996138]
[1747508329045,4.30822204,165.83,165.73,2.84771465]
[1747508329225,18.64964886,165.82,165.73,2.84771465]
[1747508329943,18.64964886,165.82,165.75,26.0]
[1747508330147,18.64964886,165.82,165.76,6.03281853]
[1747508332351,6.03063667,165.82,165.76,6.03281853]
[1747508332538,6.03039918,165.83,165.76,6.03281853]
[1747508332744,24.68004804,165.83,165.76,6.03281853]
[1747508334551,18.64964886,165.83,165.76,6.03281853]
[1747508338650,22.09861896,165.83,165.75,15.08247653]
[1747508338853,28.12901672,165.83,165.75,15.08247653]
[1747508339346,28.12901672,165.83,165.75,60.58247653]
[1747508339753,22.09861896,165.83,165.75,60.58247653]
[1747508339949,18.64964886,165.83,165.75,60.58247653]
[1747508340150,18.64964886,165.83,165.75,61.7886618]
[1747508340449,18.64964886,165.84,165.75,61.7886618]
[1747508340637,18.64964886,165.84,165.75,67.8218443]
[1747508340836,18.64964886,165.84,165.76,6.1297]
[1747508341450,18.64964886,165.84,165.76,51.6297]
[1747508342367,18.64964886,165.84,165.77,21.11359111]
[1747508345368,18.64964886,165.84,165.77,66.61359111]
[1747508349366,18.64964886,165.85,165.77,66.61359111]
[1747508352047,18.64964886,165.86,165.78,1.5436]
[1747508352248,18.64964886,165.86,165.78,47.0436]
[1747508353750,18.64964886,165.86,165.79,6.03172688]
[1747508354652,18.64964886,165.87,165.79,21.11104408]
[1747508355774,18.64964886,165.87,165.8,1.20586261]
[1747508355976,18.64964886,165.87,165.81,21.10849767]
[1747508356482,18.64964886,165.9,165.81,21.10849767]
[1747508356648,18.64964886,165.9,165.81,66.60849767]
[1747508357751,24.67750536,165.9,165.81,66.60849767]
[1747508362470,24.67750536,165.9,165.83,6.03027196]
[1747508363684,18.64964886,165.88,165.82,1.5436]
[1747508363869,18.64964886,165.88,165.82,7.57418341]
[1747508364185,18.64964886,165.88,165.82,6.03058341]
[1747508364490,6.02881774,165.87,165.81,51.53093307]
[1747508365558,18.64964886,165.86,165.81,51.53093307]
[1747508366577,6.02929981,165.86,165.81,51.53093307]
[1747508367891,24.67810316,165.88,165.81,51.53093307]
[1747508373795,39.74923892,165.88,165.81,45.5]
[1747508373967,18.64964886,165.86,165.81,45.5]
[1747508375387,18.64964886,165.86,165.79,51.53161154]
[1747508377909,18.64964886,165.84,165.79,51.53161154]
[1747508379795,6.03007398,165.84,165.79,51.53161154]
[1747508380999,18.64964886,165.84,165.79,51.53161154]
[1747508381903,18.64964886,165.84,165.79,45.5]
[1747508382906,6.03018923,165.84,165.79,45.5]
[1747508383588,6.03018923,165.84,165.79,51.53169623]
[1747508383789,6.03018923,165.84,165.79,45.5]
[1747508384210,6.03018923,165.84,165.79,51.53172474]
[1747508385219,18.64964886,165.84,165.79,51.53172474]
[1747508387705,6.02995487,165.84,165.79,51.53172474]
[1747508388104,6.02995487,165.84,165.79,45.5]
[1747508389594,18.64964886,165.84,165.79,45.5]
[1747508391701,6.03001906,165.84,165.79,51.53172125]
[1747508393011,24.67883009,165.86,165.79,51.53172125]
[1747508393187,28.11194117,165.86,165.79,51.53172125]
[1747508395327,18.64964886,165.82,165.74,1.5835]
[1747508395486,18.64964886,165.8,165.74,1.5835]
[1747508395685,18.64964886,165.78,165.71,6.03457275]
[1747508396814,18.64964886,165.76,165.71,6.03457275]
[1747508400413,18.64964886,165.76,165.71,51.53457275]
[1747508400824,6.03282931,165.76,165.71,51.53457275]
[1747508400993,18.64964886,165.75,165.7,47.0835]
[1747508401319,18.64964886,165.75,165.7,45.5]
[1747508401525,19.84896071,165.75,165.67,45.5]
[1747508401701,19.84896071,165.75,165.66,53.19998001]
[1747508401894,19.84896071,165.75,165.66,47.1638]
[1747508402209,18.64964886,165.73,165.66,47.1638]
[1747508402387,19.84896071,165.73,165.66,47.1638]
[1747508402787,18.64964886,165.71,165.62,1.6638]
[1747508402997,19.84896071,165.71,165.62,47.1638]
[1747508404291,45.84896071,165.71,165.62,45.5]
[1747508404737,18.64964886,165.59,165.56,8.94711578]
[1747508405019,18.64964886,165.57,165.49,39.41339076]
[1747508405794,44.64964886,165.57,165.49,39.41339076]
[1747508405996,44.64964886,165.57,165.49,1.5262]
[1747508405997,18.64964886,165.57,165.49,1.5262]
[1747508406214,19.84896071,165.57,165.49,7.56885761]
[1747508406926,18.64964886,165.59,165.52,26.0]
[1747508407305,18.64964886,165.6,165.52,26.0]
[1747508409722,18.64964886,165.6,165.53,6.04120099]
[1747508410105,24.68844826,165.6,165.53,6.04120099]
[1747508410828,18.64964886,165.6,165.53,6.04120099]
[1747508411429,18.64964886,165.6,165.53,51.54120099]
[1747508411615,18.64964886,165.61,165.53,51.54120099]
[1747508412231,18.64964886,165.61,165.53,66.64420346]
[1747508415331,18.64964886,165.62,165.53,66.64420346]
[1747508415626,18.64964886,165.64,165.56,26.0]
[1747508415803,18.64964886,165.64,165.56,71.5]
[1747508416731,18.64964886,165.64,165.57,6.03974149]
[1747508417099,24.68693831,165.64,165.57,6.03974149]
[1747508417308,25.88625016,165.64,165.57,6.03974149]
[1747508418032,25.88625016,165.64,165.56,51.54009436]
[1747508418337,51.88625016,165.64,165.55,6.04045136]
[1747508418831,66.97922287,165.64,165.53,6.04120099]
[1747508421151,18.64964886,165.6,165.51,6.041931]
[1747508421438,18.64964886,165.58,165.51,51.541931]
[1747508422239,18.64964886,165.59,165.51,51.541931]
[1747508422620,18.64964886,165.59,165.51,66.6467585]
[1747508423537,18.64964886,165.58,165.51,66.6467585]
[1747508423725,7.23805665,165.6,165.51,66.6467585]
[1747508424615,18.64964886,165.59,165.51,66.6467585]
[1747508431649,18.64964886,165.58,165.51,66.6467585]
[1747508432524,6.0390644,165.59,165.51,66.6467585]
[1747508432742,18.64964886,165.58,165.51,51.541931]
[1747508433124,6.03942106,165.58,165.51,51.541931]
[1747508434053,18.64964886,165.59,165.51,66.6467585]
[1747508437136,1.19931185,165.58,165.51,51.541931]
[1747508437347,18.64964886,165.57,165.51,51.541931]
[1747508438326,24.68959015,165.57,165.51,51.541931]
[1747508439041,18.64964886,165.55,165.51,45.5]
[1747508439344,18.64964886,165.55,165.49,53.06875305]
[1747508439653,18.64964886,165.53,165.48,6.04290251]
[1747508440545,24.69095728,165.53,165.47,6.04339155]
[1747508440729,18.64964886,165.53,165.47,51.54339155]
[1747508445371,18.64964886,165.51,165.47,51.54339155]
[1747508446668,18.64964886,165.51,165.47,51.54334051]
[1747508447270,18.64964886,165.51,165.47,6.04334051]
[1747508447744,18.64964886,165.51,165.46,6.04375679]
[1747508448637,24.69163917,165.51,165.45,53.04422342]
[1747508449357,24.69163917,165.51,165.45,1.5002]
[1747508449570,18.64964886,165.49,165.44,6.04441953]
[1747508449740,24.69231593,165.49,165.43,6.0448528]
[1747508451035,18.64964886,165.47,165.42,51.54511616]
[1747508451661,18.64964886,165.47,165.42,45.5]
[1747508451852,18.64964886,165.47,165.41,7.70984651]
[1747508452051,1.19931185,165.48,165.4,60.94247079]
[1747508452052,18.64964886,165.45,165.4,6.04584959]
[1747508452250,18.64964886,165.45,165.36,67.10443705]
[1747508452955,18.64964886,165.47,165.37,47.16466105]
[1747508453160,18.64964886,165.47,165.39,21.16210169]
[1747508454037,18.64964886,165.48,165.4,2.85929201]
[1747508454248,18.64964886,165.5,165.4,48.35929201]
[1747508454451,26.93392352,165.51,165.41,6.0708]
[1747508454644,18.64964886,165.5,165.42,1.20848731]
[1747508455048,19.14964886,165.5,165.42,1.20848731]
[1747508455238,18.64964886,165.5,165.43,21.15698481]
[1747508455738,18.64964886,165.54,165.43,21.15698481]
[1747508455938,18.64964886,165.54,165.44,1.20843165]
[1747508456140,18.64964886,165.54,165.45,1.6505]
[1747508456441,18.65547688,165.56,165.47,6.0708]
[1747508456647,18.65547688,165.56,165.47,51.5708]
[1747508456944,18.64964886,165.55,165.47,51.5708]
[1747508457143,18.64964886,165.55,165.48,1.20813521]
[1747508457348,18.64964886,165.55,165.49,21.14931414]
[1747508459973,18.64964886,165.53,165.41,1.5323]
[1747508460273,44.64964886,165.51,165.41,1.5323]
[1747508460564,18.64964886,165.49,165.41,1.5323]
[1747508460867,18.64964886,165.47,165.37,1.5323]
[1747508461064,18.64964886,165.45,165.37,1.5323]
[1747508461362,18.64964886,165.46,165.38,6.04657214]
[1747508462154,24.69347665,165.46,165.38,6.04657214]
[1747508462354,1.19931185,165.45,165.38,6.04657214]
[1747508463171,18.64964886,165.43,165.38,6.04657214]
[1747508464072,18.64964886,165.41,165.36,6.04732205]
[1747508464289,18.64964886,165.39,165.34,6.0478689]
[1747508464649,19.84896071,165.43,165.34,6.0478689]
[1747508464850,32.04422073,165.45,165.34,6.0478689]
[1747508465159,18.64964886,165.45,165.34,21.16822695]
[1747508466370,18.64964886,165.46,165.37,26.0]
[1747508466672,18.64964886,165.46,165.37,19.2]
[1747508466673,1.19931185,165.45,165.37,19.2]
[1747508467574,18.64964886,165.46,165.37,19.2]
[1747508468156,18.64964886,165.46,165.38,22.37229632]
[1747508468361,18.64964886,165.46,165.38,74.53179632]
[1747508468672,18.64964886,165.5,165.39,1.5935]
[1747508468849,18.64964886,165.5,165.39,47.0935]
[1747508469177,18.64964886,165.5,165.4,1.20870444]